[Event "24th Hoogeveen Open 2021"]
[Site "Hoogeveen"]
[Date "2021.10.21"]
[Round "7.7"]
[White "Osterwald, Elwin"]
[Black "Basa, Manasvita"]
[Result "1-0"]
[ECO "A13"]
[WhiteElo "2130"]
[BlackElo "1668"]
[Annotator "ChessBase"]
[PlyCount "77"]
[EventDate "2021.10.15"]
[EventType "swiss"]
[EventCountry "NED"]
[SourceTitle "playchess.com"]
[Source "ChessBase"]
[SourceQuality "1"]
[TimeControl "40/5400+30:1800+30"]

1. Nf3 {[%emt 0:00:04]} d5 {[%emt 0:00:07]} 2. c4 {[%emt 0:00:06]} e6 {[%emt 0:00:05]} 3. g3 {[%emt 0:00:05]} Nf6 {[%emt 0:00:08]} 4. Bg2 {[%emt 0:00:06]} Bd6 {[%emt 0:01:28]} 5. O-O {[%emt 0:06:13]} O-O {[%emt 0:00:10]} 6. b3 {[%emt 0:01:29]} c6 {[%emt 0:01:58]} 7. Bb2 {[%emt 0:00:44]} Nbd7 {[%emt 0:01:07]} 8. Nc3 {[%emt 0:05:45]} e5 {[%emt 0:07:37]} 9. cxd5 {[%emt 0:02:33]} cxd5 {[%emt 0:00:07]} 10. Nb5 {[%emt 0:04:33]} Bb8 {[%emt 0:00:33]} 11. Ba3 {[%emt 0:04:42]} Re8 {[%emt 0:00:16]} 12. Nd6 {[%emt 0:00:52]} Re6 {[%emt 0:00:45]} 13. Nxf7 {[%emt 0:03:17]} Qa5 {[%emt 0:00:18]} 14. N7g5 {[%emt 0:01:39]} Re8 {[%emt 0:01:02]} 15. Bb2 {[%emt 0:01:16]} h6 {[%emt 0:04:28]} 16. Nh3 {[%emt 0:00:28]} Nf8 {[%emt 0:03:39]} 17. d4 {[%emt 0:04:15]} e4 {[%emt 0:00:19]} 18. Ne5 {[%emt 0:00:11]} Bf5 {[%emt 0:06:41]} 19. e3 {[%emt 0:04:52]} Bd6 {[%emt 0:04:08]} 20. f4 {[%emt 0:04:32]} exf3 {[%emt 0:03:11]} 21. Rxf3 {[%emt 0:02:05]} Bh7 {[%emt 0:06:03]} 22. Rxf6 {[%emt 0:01:36]} gxf6 {[%emt 0:25:36]} 23. Qg4+ {[%emt 0:00:12]} Ng6 {[%emt 0:00:12]} 24. Nxg6 {[%emt 0:00:20]} Kf7 {[%emt 0:00:05]} 25. Qd7+ {[%emt 0:03:42]} Kxg6 {[%emt 0:00:35]} 26. Qxd6 {[%emt 0:00:10]} Rxe3 {[%emt 0:02:22]} 27. Rf1 {[%emt 0:00:48]} Qd8 {[%emt 0:03:31]} 28. Nf4+ {[%emt 0:01:26]} Kg7 {[%emt 0:10:29]} 29. Ne6+ {[%emt 0:00:39]} Rxe6 {[%emt 0:00:08]} 30. Qxe6 {[%emt 0:00:06]} Bg8 {[%emt 0:01:38]} 31. Qg4+ {[%emt 0:00:32]} Kh8 {[%emt 0:00:33]} 32. Qh4 {[%emt 0:01:08]} Kg7 {[%emt 0:00:26]} 33. Bc1 {[%emt 0:00:17]} Rc8 {[%emt 0:01:05]} 34. Bxh6+ {[%emt 0:00:52]} Kf7 {[%emt 0:00:13]} 35. Bf3 {[%emt 0:01:08]} Bh7 {[%emt 0:01:19]} 36. Bxd5+ {[%emt 0:01:29]} Ke8 {[%emt 0:08:24]} 37. Re1+ {[%emt 0:01:32]} Kd7 {[%emt 0:00:18]} 38. Qg4+ {[%emt 0:00:23]} Kc7 {[%emt 0:03:31]} 39. Rc1+ {[%emt 0:00:38]} 1-0

[Event "24th Hoogeveen Open 2021"]
[Site "Hoogeveen"]
[Date "2021.10.22"]
[Round "8.4"]
[White "Gutkind, Kedem"]
[Black "Tabak, Stefan"]
[Result "1-0"]
[ECO "A43"]
[WhiteElo "2112"]
[BlackElo "2168"]
[Annotator "ChessBase"]
[PlyCount "141"]
[EventDate "2021.10.15"]
[EventType "swiss"]
[EventCountry "NED"]
[SourceTitle "playchess.com"]
[Source "ChessBase"]
[SourceQuality "1"]
[TimeControl "40/5400+30:1800+30"]

1. d4 {[%emt 0:00:03]} Nf6 {[%emt 0:00:07]} 2. Nf3 {[%emt 0:00:10]} c5 {[%emt 0:02:58]} 3. d5 {[%emt 0:00:07]} e6 {[%emt 0:01:13]} 4. Nc3 {[%emt 0:00:05]} b5 {[%emt 0:04:47]} 5. dxe6 {[%emt 0:12:06]} fxe6 {[%emt 0:00:14]} 6. Nxb5 {[%emt 0:01:36]} Qa5+ {[%emt 0:03:28]} 7. Nc3 {[%emt 0:00:04]} d5 {[%emt 0:00:05]} 8. e3 {[%emt 0:02:21]} Bd6 {[%emt 0:10:52]} 9. Bd2 {[%emt 0:07:22]} Qb6 {[%emt 0:00:12]} 10. e4 {[%emt 0:33:07]} dxe4 {[%emt 0:19:33]} 11. Ng5 {[%emt 0:00:08]} O-O {[%emt 0:00:16]} 12. Ngxe4 {[%emt 0:00:58]} Bb7 {[%emt 0:06:29]} 13. Nxd6 {[%emt 0:00:06]} Qxd6 {[%emt 0:00:05]} 14. Qe2 {[%emt 0:04:34]} Nc6 {[%emt 0:00:38]} 15. Nb5 {[%emt 0:01:11]} Qe7 {[%emt 0:00:51]} 16. c3 {[%emt 0:02:34]} a6 {[%emt 0:03:54]} 17. Na3 {[%emt 0:00:07]} e5 {[%emt 0:00:04]} 18. Be3 {[%emt 0:02:30]} Kh8 {[%emt 0:09:13]} 19. O-O-O {[%emt 0:03:48]} Rac8 {[%emt 0:02:50]} 20. Kb1 {[%emt 0:00:28]} e4 {[%emt 0:04:10]} 21. Nc4 {[%emt 0:01:15]} Rcd8 {[%emt 0:05:28]} 22. Rxd8 {[%emt 0:05:51]} Rxd8 {[%emt 0:00:28]} 23. Qe1 {[%emt 0:00:43]} Ng4 {[%emt 0:02:08]} 24. Be2 {[%emt 0:09:02]} Nge5 {[%emt 0:00:17]} 25. Qc1 {[%emt 0:01:20]} Nd3 {[%emt 0:03:26]} 26. Qc2 {[%emt 0:01:23]} a5 {[%emt 0:02:40]} 27. Rd1 {[%emt 0:01:40]} Ba6 {[%emt 0:00:24]} 28. Qa4 {[%emt 0:02:15]} Qb7 {[%emt 0:14:14]} 29. Bxd3 {[%emt 0:01:24]} exd3 {[%emt 0:00:21]} 30. Nxa5 {[%emt 0:01:48]} Nxa5 {[%emt 0:00:07]} 31. Qxa5 {[%emt 0:00:03]} Rb8 {[%emt 0:00:19]} 32. Rd2 {[%emt 0:00:12]} c4 {[%emt 0:00:26]} 33. Qe5 {[%emt 0:03:42]} Bb5 {[%emt 0:00:50]} 34. b4 {[%emt 0:01:52]} Re8 {[%emt 0:03:19]} 35. Qc5 {[%emt 0:00:42]} Rc8 {[%emt 0:00:44]} 36. Qb6 {[%emt 0:01:02]} Qd5 {[%emt 0:00:17]} 37. Kb2 {[%emt 0:00:45]} Ra8 {[%emt 0:00:57]} 38. Qc5 {[%emt 0:00:17]} Qd7 {[%emt 0:00:09]} 39. h4 {[%emt 0:00:27]} Qb7 {[%emt 0:00:41]} 40. Qb6 {[%emt 0:00:36]} Qd7 {[%emt 0:00:18]} 41. h5 {[%emt 0:02:35]} h6 {[%emt 0:16:09]} 42. Bd4 {[%emt 0:10:47]} Ra6 {[%emt 0:04:16]} 43. Qb8+ {[%emt 0:00:34]} Kh7 {[%emt 0:00:06]} 44. f4 {[%emt 0:07:17]} Bc6 {[%emt 0:04:11]} 45. Qf8 {[%emt 0:00:55]} Be4 {[%emt 0:01:57]} 46. Kc1 {[%emt 0:02:58]} Ra8 {[%emt 0:03:10]} 47. Qc5 {[%emt 0:00:12]} Rc8 {[%emt 0:00:35]} 48. Qe5 {[%emt 0:02:19]} Re8 {[%emt 0:00:29]} 49. Qc5 {[%emt 0:00:10]} Qg4 {[%emt 0:02:29]} 50. Be5 {[%emt 0:04:06]} Rc8 {[%emt 0:01:21]} 51. Qe7 {[%emt 0:00:35]} Bf5 {[%emt 0:00:49]} 52. b5 {[%emt 0:01:06]} Rg8 {[%emt 0:00:28]} 53. Qf7 {[%emt 0:01:27]} Be4 {[%emt 0:00:30]} 54. Qxc4 {[%emt 0:00:44]} Bf5 {[%emt 0:00:40]} 55. b6 {[%emt 0:00:47]} Qg3 {[%emt 0:00:14]} 56. Rd1 {[%emt 0:01:26]} Qe3+ {[%emt 0:00:21]} 57. Kb1 {[%emt 0:00:39]} Qxb6+ {[%emt 0:00:36]} 58. Qb3 {[%emt 0:00:10]} Qf2 {[%emt 0:00:18]} 59. Ka1 {[%emt 0:00:50]} Ra8 {[%emt 0:00:36]} 60. Qf7 {[%emt 0:00:19]} Rxa2+ {[%emt 0:01:08]} 61. Qxa2 {[%emt 0:00:04]} Qc5 {[%emt 0:01:03]} 62. Qb3 {[%emt 0:00:35]} Qc6 {[%emt 0:00:00]} 63. Rd2 {[%emt 0:00:17]} Qe4 {[%emt 0:00:07]} 64. Kb2 {[%emt 0:00:26]} Qe1 {[%emt 0:00:16]} 65. Qd1 {[%emt 0:00:24]} Qe4 {[%emt 0:00:04]} 66. Qf3 {[%emt 0:00:32]} Qe1 {[%emt 0:00:51]} 67. Qd1 {[%emt 0:00:44]} Qe4 {[%emt 0:00:04]} 68. g4 {[%emt 0:00:32]} Be6 {[%emt 0:00:22]} 69. Rxd3 {[%emt 0:01:03]} Qc4 {[%emt 0:00:12]} 70. Rd4 {[%emt 0:00:23]} Qa2+ {[%emt 0:00:16]} 71. Kc1 {[%emt 0:00:04]} 1-0

[Event "24th Hoogeveen Open 2021"]
[Site "Hoogeveen"]
[Date "2021.10.22"]
[Round "8.5"]
[White "Van der Hagen, Loek"]
[Black "Van den Berg, Bram"]
[Result "1/2-1/2"]
[ECO "B01"]
[WhiteElo "2010"]
[BlackElo "2209"]
[Annotator "RC"]
[PlyCount "135"]
[EventDate "2021.10.15"]
[EventType "swiss"]
[EventCountry "NED"]
[SourceTitle "playchess.com"]
[Source "ChessBase"]
[SourceQuality "1"]
[TimeControl "40/5400+30:1800+30"]

1. e4 {[%emt 0:00:04]} d5 {[%emt 0:00:20]} 2. exd5 {[%emt 0:00:05]} Nf6 {[%emt 0:00:03]} 3. Be2 {[%emt 0:00:07]} Nxd5 {[%emt 0:01:29]} 4. d4 {[%emt 0:00:08]} e6 {[%emt 0:00:57]} 5. Nf3 {[%emt 0:00:12]} Be7 {[%emt 0:00:08]} 6. O-O {[%emt 0:00:13]} O-O {[%emt 0:00:11]} 7. c4 {[%emt 0:00:38]} Nf6 {[%emt 0:04:27]} 8. Nc3 {[%emt 0:03:19]} Re8 {[%emt 0:00:30]} 9. h3 {[%emt 0:02:28]} a6 {[%emt 0:04:32]} 10. Be3 {[%emt 0:02:57]} Nbd7 {[%emt 0:07:31]} 11. Qc2 {[%emt 0:04:04]} b6 {[%emt 0:00:42]} 12. Rfd1 {[%emt 0:01:05]} Bb7 {[%emt 0:05:12]} 13. Rac1 {[%emt 0:01:05]} Bb4 {[%emt 0:07:14]} 14. a3 {[%emt 0:07:56]} Bxc3 {[%emt 0:08:01]} 15. Qxc3 {[%emt 0:00:15]} Qe7 {[%emt 0:01:20]} 16. b4 {[%emt 0:19:09]} c5 {[%emt 0:11:37]} 17. dxc5 {[%emt 0:21:04]} bxc5 {[%emt 0:00:31]} 18. Ne1 {[%emt 0:01:43]} Rec8 {[%emt 0:03:31]} 19. Qb3 {[%emt 0:02:13]} a5 {[%emt 0:10:57]} 20. b5 {[%emt 0:01:51]} a4 {[%emt 0:02:08]} 21. Qc2 {[%emt 0:06:39]} Nb6 {[%emt 0:02:49]} 22. Bf3 {[%emt 0:03:29]} Bxf3 {[%emt 0:04:21]} 23. Nxf3 {[%emt 0:00:12]} e5 {[%emt 0:00:07]} 24. Nd2 {[%emt 0:02:19]} Qe6 {[%emt 0:02:30]} 25. f3 {[%emt 0:06:59]} h6 {[%emt 0:00:54]} 26. Bf2 {[%emt 0:01:15]} Ra7 {[%emt 0:01:11]} 27. Re1 {[%emt 0:02:12]} Re7 {[%emt 0:04:02]} 28. Bh4 {[%emt 0:00:26]} g5 {[%emt 0:00:54]} 29. Bg3 {[%emt 0:00:29]} Nfd7 {[%emt 0:00:41]} 30. f4 {[%emt 0:02:52]} gxf4 {[%emt 0:00:46]} 31. Bxf4 {[%emt 0:00:19]} f5 {[%emt 0:00:05]} 32. Nf3 {[%emt 0:06:58]} e4 {[%emt 0:04:07]} 33. Nh2 {[%emt 0:01:00]} Ne5 {[%emt 0:01:29]} 34. Bxe5 {[%emt 0:00:21]} Qxe5 {[%emt 0:01:37]} 35. Qc3 {[%emt 0:01:20]} Qxc3 {[%emt 0:05:16]} 36. Rxc3 {[%emt 0:00:04]} Rd7 {[%emt 0:00:04]} 37. g4 {[%emt 0:00:39]} Rd3 {[%emt 0:00:16]} 38. Rxd3 {[%emt 0:00:38]} exd3 {[%emt 0:00:09]} 39. Rd1 {[%emt 0:00:39]} Rd8 {[%emt 0:00:35]} 40. gxf5 {[%emt 0:00:29]} Nxc4 {[%emt 0:00:51]} 41. Ng4 {[%emt 0:05:45]} Nxa3 {[%emt 0:16:50]} 42. b6 {[%emt 0:05:17]} c4 {[%emt 0:01:09]} 43. b7 {[%emt 0:02:35]} Nc2 {[%emt 0:05:00]} 44. Nf6+ {[%emt 0:06:07]} Kg7 {[%emt 0:02:05]} 45. Nd7 {[%emt 0:01:27]} Nd4 {[%emt 0:00:42]} 46. f6+ {[%emt 0:03:46]} Kf7 {[%emt 0:02:38]} 47. Ne5+ {[%emt 0:02:38]} Kxf6 {[%emt 0:01:08]} 48. Nxc4 {[%emt 0:00:34]} Nc6 {[%emt 0:00:29]} 49. Nb2 {[%emt 0:00:51]} a3 {[%emt 0:00:37]} 50. Nxd3 {[%emt 0:00:39]} a2 {[%emt 0:00:36]} 51. Rf1+ {[%emt 0:00:32]} Kg7 {[%emt 0:01:45]} 52. Nc5 {[%emt 0:01:14]} Re8 {[%emt 0:02:04]} 53. Kg2 {[%emt 0:04:35]} Re5 {[%emt 0:01:23]} 54. Nd3 {[%emt 0:00:57]} Rg5+ {[%emt 0:02:33]} 55. Kh2 {[%emt 0:00:14]} Rb5 {[%emt 0:00:11]} 56. Ra1 {[%emt 0:00:24]} Rb3 {[%emt 0:00:07]} 57. Nc5 {[%emt 0:00:39]} Rb2+ {[%emt 0:00:37]} 58. Kg3 {[%emt 0:00:06]} Kf7 {[%emt 0:01:39]} 59. Na6 {[%emt 0:00:45]} Ke6 {[%emt 0:00:51]} 60. b8=Q {[%emt 0:00:26]} Nxb8 {[%emt 0:00:06]} 61. Nxb8 {[%emt 0:00:05]} Kd5 {[%emt 0:00:18]} 62. Nd7 {[%emt 0:01:12]} Kc4 {[%emt 0:00:15]} 63. Ne5+ {[%emt 0:00:34]} Kb3 {[%emt 0:00:20]} 64. Nf7 {[%emt 0:00:39]} Rb1 {[%emt 0:00:35]} 65. Rxa2 {[%emt 0:00:08]} Kxa2 {[%emt 0:00:04]} 66. Nxh6 {[%emt 0:00:10]} Rb3+ {[%emt 0:00:04]} 67. Kg4 {[%emt 0:00:17]} Rxh3 {[%emt 0:00:04]} 68. Kxh3 {[%emt 0:00:04]} 1/2-1/2

[Event "24th Hoogeveen Open 2021"]
[Site "Hoogeveen"]
[Date "2021.10.22"]
[Round "8.6"]
[White "Arnold, Kiri"]
[Black "Binnendijk, Ferdinand"]
[Result "0-1"]
[ECO "B48"]
[WhiteElo "1787"]
[BlackElo "2142"]
[Annotator "ChessBase"]
[PlyCount "70"]
[EventDate "2021.10.15"]
[EventType "swiss"]
[EventCountry "NED"]
[SourceTitle "playchess.com"]
[Source "ChessBase"]
[SourceQuality "1"]
[TimeControl "40/5400+30:1800+30"]

1. e4 {[%emt 0:00:03]} c5 {[%emt 0:00:02]} 2. Nf3 {[%emt 0:00:20]} Nc6 {[%emt 0:00:04]} 3. d4 {[%emt 0:00:37]} cxd4 {[%emt 0:02:09]} 4. Nxd4 {[%emt 0:00:02]} e6 {[%emt 0:00:11]} 5. Nc3 {[%emt 0:08:15]} Qc7 {[%emt 0:02:23]} 6. Be3 {[%emt 0:05:30]} a6 {[%emt 0:00:23]} 7. Bd3 {[%emt 0:06:11]} Nf6 {[%emt 0:06:46]} 8. O-O {[%emt 0:03:08]} Be7 {[%emt 0:00:00]} 9. Nxc6 {[%emt 0:03:36]} bxc6 {[%emt 0:00:00]} 10. f4 {[%emt 0:03:36]} d6 {[%emt 0:07:04]} 11. Qf3 {[%emt 0:02:23]} Rb8 {[%emt 0:04:46]} 12. b3 {[%emt 0:01:41]} Nd7 {[%emt 0:09:49]} 13. Rad1 {[%emt 0:08:13]} Bf6 {[%emt 0:09:49]} 14. Na4 {[%emt 0:01:49]} c5 {[%emt 0:02:39]} 15. c4 {[%emt 0:09:38]} Bb7 {[%emt 0:02:56]} 16. Bd2 {[%emt 0:03:22]} Bc6 {[%emt 0:10:50]} 17. Nc3 {[%emt 0:02:31]} O-O {[%emt 0:01:20]} 18. Qh3 {[%emt 0:05:10]} Bd4+ {[%emt 0:05:09]} 19. Kh1 {[%emt 0:00:14]} Qb7 {[%emt 0:04:49]} 20. Nd5 {[%emt 0:13:59]} Rbe8 {[%emt 0:04:35]} 21. Bc3 {[%emt 0:04:35]} f5 {[%emt 0:03:00]} 22. Bxd4 {[%emt 0:13:36]} cxd4 {[%emt 0:00:06]} 23. a3 {[%emt 0:01:06]} h6 {[%emt 0:06:06]} 24. Rde1 {[%emt 0:01:16]} Nc5 {[%emt 0:02:36]} 25. Nb4 {[%emt 0:00:40]} Nxd3 {[%emt 0:00:55]} 26. Qxd3 {[%emt 0:00:02]} Bxe4 {[%emt 0:00:20]} 27. Qg3 {[%emt 0:00:26]} a5 {[%emt 0:01:11]} 28. Na2 {[%emt 0:00:28]} Kh7 {[%emt 0:01:19]} 29. h4 {[%emt 0:00:53]} Rf6 {[%emt 0:00:21]} 30. h5 {[%emt 0:00:09]} g6 {[%emt 0:00:31]} 31. Qh4 {[%emt 0:00:45]} Ref8 {[%emt 0:02:24]} 32. Rf2 {[%emt 0:00:23]} gxh5 {[%emt 0:00:37]} 33. b4 {[%emt 0:00:27]} Rg6 {[%emt 0:00:40]} 34. Ree2 {[%emt 0:00:11]} Rfg8 {[%emt 0:00:13]} 35. Qh3 {[%emt 0:02:02]} Rg3 {[%emt 0:00:58]} 0-1

[Event "24th Hoogeveen Open 2021"]
[Site "Hoogeveen"]
[Date "2021.10.22"]
[Round "8.7"]
[White "Labruyere, Roger"]
[Black "Willemsma, Abe"]
[Result "1-0"]
[ECO "C25"]
[WhiteElo "2009"]
[BlackElo "2095"]
[Annotator "ChessBase"]
[PlyCount "35"]
[EventDate "2021.10.15"]
[EventType "swiss"]
[EventCountry "NED"]
[SourceTitle "playchess.com"]
[Source "ChessBase"]
[SourceQuality "1"]
[TimeControl "40/5400+30:1800+30"]

1. e4 {[%emt 0:00:01]} Nc6 {[%emt 0:00:07]} 2. Nc3 {[%emt 0:00:18]} e5 {[%emt 0:02:05]} 3. f4 {[%emt 0:00:06]} exf4 {[%emt 0:05:40]} 4. Nf3 {[%emt 0:00:47]} g5 {[%emt 0:02:24]} 5. Bc4 {[%emt 0:01:27]} g4 {[%emt 0:04:21]} 6. O-O {[%emt 0:00:58]} gxf3 {[%emt 0:00:13]} 7. Qxf3 {[%emt 0:00:13]} Qf6 {[%emt 0:07:07]} 8. Nd5 {[%emt 0:07:02]} Qd4+ {[%emt 0:03:01]} 9. Kh1 {[%emt 0:04:45]} Bd6 {[%emt 0:08:23]} 10. d3 {[%emt 0:02:19]} Nge7 {[%emt 0:04:25]} 11. Bxf4 {[%emt 0:01:31]} Bxf4 {[%emt 0:12:46]} 12. Qxf4 {[%emt 0:00:41]} Nxd5 {[%emt 0:00:23]} 13. Qxf7+ {[%emt 0:00:07]} Kd8 {[%emt 0:00:09]} 14. exd5 {[%emt 0:00:07]} d6 {[%emt 0:07:11]} 15. dxc6 {[%emt 0:00:15]} bxc6 {[%emt 0:00:07]} 16. c3 {[%emt 0:00:08]} Qe5 {[%emt 0:00:15]} 17. Rae1 {[%emt 0:00:06]} Qg5 {[%emt 0:00:34]} 18. Rf6 {[%emt 0:05:06]} 1-0

[Event "24th Hoogeveen Open 2021"]
[Site "Hoogeveen"]
[Date "2021.10.23"]
[Round "9.1"]
[White "Hovenga, Alje"]
[Black "Bezemer, Arno"]
[Result "1/2-1/2"]
[ECO "D14"]
[WhiteElo "2212"]
[BlackElo "2283"]
[Annotator "NA"]
[PlyCount "24"]
[EventDate "2021.10.15"]
[EventType "swiss"]
[EventCountry "NED"]
[SourceTitle "playchess.com"]
[Source "ChessBase"]
[SourceQuality "1"]
[TimeControl "40/5400+30:1800+30"]

1. d4 {[%emt 0:00:02]} d5 {[%emt 0:00:09]} 2. c4 {[%emt 0:00:11]} c6 {[%emt 0:00:08]} 3. Nf3 {[%emt 0:00:14]} Nf6 {[%emt 0:00:09]} 4. cxd5 {[%emt 0:00:12]} cxd5 {[%emt 0:00:07]} 5. Nc3 {[%emt 0:00:12]} Nc6 {[%emt 0:00:15]} 6. Bf4 {[%emt 0:00:19]} Bf5 {[%emt 0:00:18]} 7. e3 {[%emt 0:00:28]} e6 {[%emt 0:00:05]} 8. Bd3 {[%emt 0:00:28]} Bxd3 {[%emt 0:00:08]} 9. Qxd3 {[%emt 0:00:07]} Bd6 {[%emt 0:00:13]} 10. Bxd6 {[%emt 0:00:12]} Qxd6 {[%emt 0:00:06]} 11. O-O {[%emt 0:00:15]} O-O {[%emt 0:00:12]} 12. Rfc1 {[%emt 0:00:12]} Rfc8 {[%emt 0:00:14]} 1/2-1/2

[Event "24th Hoogeveen Open 2021"]
[Site "Hoogeveen"]
[Date "2021.10.23"]
[Round "9.3"]
[White "Roobol, Martin"]
[Black "Binnendijk, Ferdinand"]
[Result "1/2-1/2"]
[ECO "B07"]
[WhiteElo "2296"]
[BlackElo "2142"]
[Annotator "ChessBase"]
[PlyCount "77"]
[EventDate "2021.10.15"]
[EventType "swiss"]
[EventCountry "NED"]
[SourceTitle "playchess.com"]
[Source "ChessBase"]
[SourceQuality "1"]
[TimeControl "40/5400+30:1800+30"]

1. e4 {[%emt 0:00:03]} d6 {[%emt 0:00:04]} 2. d4 {[%emt 0:00:05]} Nf6 {[%emt 0:00:04]} 3. Nc3 {[%emt 0:00:06]} e5 {[%emt 0:00:05]} 4. Nge2 {[%emt 0:00:30]} Be7 {[%emt 0:02:06]} 5. h3 {[%emt 0:00:55]} h5 {[%emt 0:00:22]} 6. g3 {[%emt 0:02:13]} c6 {[%emt 0:02:32]} 7. a4 {[%emt 0:00:38]} a5 {[%emt 0:02:06]} 8. Bg2 {[%emt 0:01:25]} Nbd7 {[%emt 0:06:17]} 9. Be3 {[%emt 0:01:34]} Qc7 {[%emt 0:05:33]} 10. O-O {[%emt 0:04:50]} O-O {[%emt 0:03:34]} 11. f4 {[%emt 0:00:00]} exd4 {[%emt 0:05:08]} 12. Bxd4 {[%emt 0:10:13]} Re8 {[%emt 0:08:07]} 13. Qd2 {[%emt 0:00:32]} Nc5 {[%emt 0:10:51]} 14. Rae1 {[%emt 0:07:13]} d5 {[%emt 0:05:24]} 15. exd5 {[%emt 0:09:04]} cxd5 {[%emt 0:00:17]} 16. f5 {[%emt 0:00:08]} Nce4 {[%emt 0:03:52]} 17. Nxd5 {[%emt 0:19:38]} Nxd5 {[%emt 0:10:42]} 18. Bxe4 {[%emt 0:00:11]} Nf6 {[%emt 0:01:11]} 19. Bg2 {[%emt 0:04:42]} Bd7 {[%emt 0:01:44]} 20. b3 {[%emt 0:20:35]} Bc5 {[%emt 0:04:26]} 21. Kh2 {[%emt 0:05:34]} Bxd4 {[%emt 0:06:09]} 22. Nxd4 {[%emt 0:00:37]} h4 {[%emt 0:01:22]} 23. Qf4 {[%emt 0:02:52]} hxg3+ {[%emt 0:00:27]} 24. Qxg3 {[%emt 0:00:12]} Qc5 {[%emt 0:00:13]} 25. c3 {[%emt 0:02:47]} Bc6 {[%emt 0:01:40]} 26. Bxc6 {[%emt 0:03:26]} bxc6 {[%emt 0:00:11]} 27. Rxe8+ {[%emt 0:00:18]} Rxe8 {[%emt 0:00:28]} 28. Re1 {[%emt 0:00:58]} Rxe1 {[%emt 0:02:16]} 29. Qxe1 {[%emt 0:00:04]} Qd6+ {[%emt 0:01:21]} 30. Qg3 {[%emt 0:00:52]} Qd5 {[%emt 0:04:36]} 31. Qf3 {[%emt 0:01:01]} Ne4 {[%emt 0:02:44]} 32. Kg2 {[%emt 0:00:44]} c5 {[%emt 0:01:41]} 33. Ne2 {[%emt 0:00:24]} Qe5 {[%emt 0:02:53]} 34. c4 {[%emt 0:02:02]} Ng5 {[%emt 0:01:02]} 35. Qd3 {[%emt 0:00:18]} Ne4 {[%emt 0:01:41]} 36. Qd8+ {[%emt 0:00:50]} Kh7 {[%emt 0:00:03]} 37. Qh4+ {[%emt 0:00:04]} Kg8 {[%emt 0:00:03]} 38. Qd8+ {[%emt 0:00:10]} Kh7 {[%emt 0:00:04]} 39. Qh4+ {[%emt 0:01:30]} 1/2-1/2

[Event "24th Hoogeveen Open 2021"]
[Site "Hoogeveen"]
[Date "2021.10.23"]
[Round "9.4"]
[White "Meurs, Tom"]
[Black "Labruyere, Roger"]
[Result "1-0"]
[ECO "B12"]
[WhiteElo "2217"]
[BlackElo "2009"]
[Annotator "ChessBase"]
[PlyCount "51"]
[EventDate "2021.10.15"]
[EventType "swiss"]
[EventCountry "NED"]
[SourceTitle "playchess.com"]
[Source "ChessBase"]
[SourceQuality "1"]
[TimeControl "40/5400+30:1800+30"]

1. e4 {[%emt 0:00:03]} c6 {[%emt 0:00:04]} 2. d4 {[%emt 0:00:07]} d5 {[%emt 0:00:05]} 3. e5 {[%emt 0:00:04]} c5 {[%emt 0:00:14]} 4. Nf3 {[%emt 0:00:20]} Bf5 {[%emt 0:01:20]} 5. dxc5 {[%emt 0:03:06]} e6 {[%emt 0:00:12]} 6. Be3 {[%emt 0:00:57]} Nc6 {[%emt 0:01:00]} 7. c4 {[%emt 0:03:40]} Qa5+ {[%emt 0:08:15]} 8. Qd2 {[%emt 0:05:00]} Qxd2+ {[%emt 0:00:24]} 9. Nbxd2 {[%emt 0:03:50]} Nb4 {[%emt 0:00:14]} 10. Nd4 {[%emt 0:01:12]} O-O-O {[%emt 0:15:28]} 11. a3 {[%emt 0:04:28]} Nd3+ {[%emt 0:00:11]} 12. Bxd3 {[%emt 0:01:17]} Bxd3 {[%emt 0:00:03]} 13. Rc1 {[%emt 0:04:47]} Bxc4 {[%emt 0:01:04]} 14. Nxc4 {[%emt 0:02:09]} dxc4 {[%emt 0:00:02]} 15. Rxc4 {[%emt 0:09:57]} Rd5 {[%emt 0:01:45]} 16. Nb5 {[%emt 0:01:56]} Rxe5 {[%emt 0:03:20]} 17. Nxa7+ {[%emt 0:00:19]} Kb8 {[%emt 0:00:42]} 18. c6 {[%emt 0:00:13]} Rxe3+ {[%emt 0:00:05]} 19. fxe3 {[%emt 0:00:04]} Kxa7 {[%emt 0:00:04]} 20. c7 {[%emt 0:00:06]} Ne7 {[%emt 0:00:03]} 21. O-O {[%emt 0:00:59]} Nc8 {[%emt 0:00:12]} 22. Rxf7 {[%emt 0:00:31]} Rg8 {[%emt 0:21:59]} 23. Rd4 {[%emt 0:05:11]} Bd6 {[%emt 0:05:00]} 24. Rd7 {[%emt 0:00:17]} b6 {[%emt 0:03:01]} 25. Rd8 {[%emt 0:00:13]} Rf8 {[%emt 0:00:09]} 26. R4xd6 {[%emt 0:00:53]} 1-0

[Event "24th Hoogeveen Open 2021"]
[Site "Hoogeveen"]
[Date "2021.10.23"]
[Round "9.5"]
[White "De Winter, Arthur"]
[Black "Osterwald, Elwin"]
[Result "1-0"]
[ECO "C12"]
[WhiteElo "2034"]
[BlackElo "2130"]
[Annotator "ChessBase"]
[PlyCount "63"]
[EventDate "2021.10.15"]
[EventType "swiss"]
[EventCountry "NED"]
[SourceTitle "playchess.com"]
[Source "ChessBase"]
[SourceQuality "1"]
[TimeControl "40/5400+30:1800+30"]

1. e4 {[%emt 0:00:03]} e6 {[%emt 0:00:06]} 2. d4 {[%emt 0:00:02]} d5 {[%emt 0:00:05]} 3. Nc3 {[%emt 0:00:03]} Nf6 {[%emt 0:00:07]} 4. Bg5 {[%emt 0:00:04]} Bb4 {[%emt 0:00:06]} 5. e5 {[%emt 0:00:04]} h6 {[%emt 0:00:06]} 6. Bd2 {[%emt 0:00:04]} Bxc3 {[%emt 0:00:07]} 7. bxc3 {[%emt 0:00:03]} Ne4 {[%emt 0:00:09]} 8. Bc1 {[%emt 0:00:05]} c5 {[%emt 0:01:05]} 9. Ne2 {[%emt 0:00:13]} cxd4 {[%emt 0:04:00]} 10. cxd4 {[%emt 0:00:30]} Qa5+ {[%emt 0:00:36]} 11. c3 {[%emt 0:00:06]} Nc6 {[%emt 0:00:39]} 12. Qb3 {[%emt 0:00:48]} Bd7 {[%emt 0:02:49]} 13. f3 {[%emt 0:10:39]} Ng5 {[%emt 0:01:20]} 14. Ba3 {[%emt 0:03:35]} f6 {[%emt 0:02:27]} 15. h4 {[%emt 0:09:35]} Nf7 {[%emt 0:01:06]} 16. f4 {[%emt 0:01:19]} O-O-O {[%emt 0:01:22]} 17. Rb1 {[%emt 0:10:59]} Qc7 {[%emt 0:04:34]} 18. g3 {[%emt 0:08:59]} Na5 {[%emt 0:01:59]} 19. Qc2 {[%emt 0:00:48]} Nc4 {[%emt 0:01:04]} 20. Be7 {[%emt 0:04:53]} Rde8 {[%emt 0:07:10]} 21. exf6 {[%emt 0:00:10]} gxf6 {[%emt 0:01:46]} 22. Bxf6 {[%emt 0:00:24]} Rhg8 {[%emt 0:01:08]} 23. Bh3 {[%emt 0:10:32]} Rxg3 {[%emt 0:07:19]} 24. Nxg3 {[%emt 0:01:10]} Na3 {[%emt 0:01:45]} 25. Qb2 {[%emt 0:05:51]} Nxb1 {[%emt 0:00:51]} 26. O-O {[%emt 0:06:44]} e5 {[%emt 0:01:24]} 27. Bxd7+ {[%emt 0:08:13]} Qxd7 {[%emt 0:01:42]} 28. Qxb1 {[%emt 0:01:26]} e4 {[%emt 0:04:10]} 29. Kh2 {[%emt 0:04:41]} Qe6 {[%emt 0:01:36]} 30. Qb5 {[%emt 0:01:33]} Rg8 {[%emt 0:01:48]} 31. Be5 {[%emt 0:03:05]} Nxe5 {[%emt 0:01:43]} 32. fxe5 {[%emt 0:00:17]} 1-0